[Event "Titled Tuesday Blitz March 01 Late 2022"]
[White "Gatterer, Florian"]
[Black "Saim, Mohamed Ilias"]
[WhiteFideId "811688"]
[BlackFideId "7900465"]
[WhiteElo "2218"]
[BlackElo "2006"]
[Result "1-0"]
[Round "07"]
[TimeControl "180+1"]
[Date "2022.03.02"]
[WhiteClock "0:00:43"]
[BlackClock "0:00:05"]

1. b3 {[%clk 0:03:00]}  Nf6 {[%clk 0:02:57]} 2. Bb2 {[%clk 0:02:59]}  e6 {[%clk 0:02:57]} 3. Nf3 {[%clk 0:02:57]}  d5 {[%clk 0:02:57]} 4. e3 {[%clk 0:02:57]}  c5 {[%clk 0:02:58]} 5. c4 {[%clk 0:02:57]}  Be7 {[%clk 0:02:55]} 6. cxd5 {[%clk 0:02:49]}  exd5 {[%clk 0:02:56]} 7. d4 {[%clk 0:02:49]}  O-O {[%clk 0:02:56]} 8. Be2 {[%clk 0:02:47]}  cxd4 {[%clk 0:02:54]} 9. Nxd4 {[%clk 0:02:46]}  Nc6 {[%clk 0:02:52]} 10. O-O {[%clk 0:02:45]}  Re8 {[%clk 0:02:40]} 11. Nc3 {[%clk 0:02:45]}  a6 {[%clk 0:02:37]} 12. Rc1 {[%clk 0:02:43]}  Be6 {[%clk 0:02:32]} 13. Bf3 {[%clk 0:02:32]}  Bc5 {[%clk 0:01:58]} 14. Nxc6 {[%clk 0:02:27]}  bxc6 {[%clk 0:01:56]} 15. Ne2 {[%clk 0:02:27]}  Qe7 {[%clk 0:01:13]} 16. Qc2 {[%clk 0:02:21]}  Nd7 {[%clk 0:01:08]} 17. Nd4 {[%clk 0:02:19]}  Rac8 {[%clk 0:01:04]} 18. Rfd1 {[%clk 0:01:57]}  Bd6 {[%clk 0:01:04]} 19. Nf5 {[%clk 0:01:52]}  Bxf5 {[%clk 0:01:02]} 20. Qxf5 {[%clk 0:01:51]}  Nc5 {[%clk 0:00:44]} 21. Qc2 {[%clk 0:01:37]}  Ne6 {[%clk 0:00:39]} 22. Bg4 {[%clk 0:01:30]}  Qh4 {[%clk 0:00:34]} 23. Bh3 {[%clk 0:01:23]}  g6 {[%clk 0:00:08]} 24. f4 {[%clk 0:01:16]}  Rc7 {[%clk 0:00:07]} 25. Qc3 {[%clk 0:01:07]}  f6 {[%clk 0:00:05]} 26. Qxf6 {[%clk 0:01:05]}  Qxf6 {[%clk 0:00:05]} 27. Bxf6 {[%clk 0:01:05]}  Bc5 {[%clk 0:00:05]} 28. Bxe6+ {[%clk 0:00:47]}  Rxe6 {[%clk 0:00:03]} 29. Rxc5 {[%clk 0:00:46]}  Rxf6 {[%clk 0:00:03]} 30. Rdxd5 {[%clk 0:00:46]}  Rd6 {[%clk 0:00:04]} 31. Rxd6 {[%clk 0:00:45]}  Re7 {[%clk 0:00:05]} 32. Kf2 {[%clk 0:00:43]}  Rxe3 {[%clk 0:00:05]} 33. Kxe3 {[%clk 0:00:43]} 1-0


[Site "https://www.chess.com"]

[Event "Titled Tuesday Blitz March 01 Late 2022"]
[White "Gelman, Alexander"]
[Black "Petrovic, Aleksa"]
[WhiteFideId "4118316"]
[BlackFideId "967629"]
[WhiteElo "2704"]
[BlackElo "2487"]
[Result "1-0"]
[Round "07"]
[TimeControl "180+1"]
[Date "2022.03.02"]
[WhiteClock "0:00:51"]
[BlackClock "0:00:05"]

1. d4 {[%clk 0:03:00]}  d5 {[%clk 0:02:57]} 2. Nc3 {[%clk 0:03:01]}  e6 {[%clk 0:02:56]} 3. Bf4 {[%clk 0:03:01]}  Nf6 {[%clk 0:02:51]} 4. Nb5 {[%clk 0:03:01]}  Bb4+ {[%clk 0:02:48]} 5. c3 {[%clk 0:03:01]}  Ba5 {[%clk 0:02:49]} 6. a4 {[%clk 0:03:01]}  a6 {[%clk 0:02:44]} 7. b4 {[%clk 0:03:02]}  axb5 {[%clk 0:02:16]} 8. axb5 {[%clk 0:03:03]}  c6 {[%clk 0:01:58]} 9. bxa5 {[%clk 0:02:56]}  cxb5 {[%clk 0:01:54]} 10. e3 {[%clk 0:02:55]}  Nc6 {[%clk 0:01:50]} 11. Bxb5 {[%clk 0:02:54]}  Rxa5 {[%clk 0:01:49]} 12. Bd3 {[%clk 0:02:46]}  Ne4 {[%clk 0:01:35]} 13. Ne2 {[%clk 0:02:40]}  g5 {[%clk 0:01:31]} 14. Bg3 {[%clk 0:02:35]}  h5 {[%clk 0:01:30]} 15. Bxe4 {[%clk 0:02:34]}  dxe4 {[%clk 0:01:28]} 16. h4 {[%clk 0:02:32]}  f6 {[%clk 0:01:12]} 17. O-O {[%clk 0:02:01]}  f5 {[%clk 0:00:39]} 18. Rxa5 {[%clk 0:01:57]}  Nxa5 {[%clk 0:00:35]} 19. hxg5 {[%clk 0:01:56]}  Qxg5 {[%clk 0:00:33]} 20. Qa4+ {[%clk 0:01:48]}  Nc6 {[%clk 0:00:33]} 21. c4 {[%clk 0:01:44]}  h4 {[%clk 0:00:28]} 22. d5 {[%clk 0:01:30]}  hxg3 {[%clk 0:00:17]} 23. Nxg3 {[%clk 0:01:31]}  Bd7 {[%clk 0:00:15]} 24. dxc6 {[%clk 0:01:28]}  Bxc6 {[%clk 0:00:10]} 25. Qa8+ {[%clk 0:01:24]}  Qd8 {[%clk 0:00:11]} 26. Qa1 {[%clk 0:01:21]}  Qh4 {[%clk 0:00:10]} 27. Rd1 {[%clk 0:01:21]}  Ke7 {[%clk 0:00:07]} 28. Qe5 {[%clk 0:01:18]}  Qf6 {[%clk 0:00:04]} 29. Nxf5+ {[%clk 0:01:16]}  Kf7 {[%clk 0:00:03]} 30. Nd6+ {[%clk 0:01:10]}  Ke7 {[%clk 0:00:03]} 31. Qg3 {[%clk 0:01:00]}  Rd8 {[%clk 0:00:03]} 32. c5 {[%clk 0:01:00]}  e5 {[%clk 0:00:03]} 33. Qg4 {[%clk 0:00:54]}  b6 {[%clk 0:00:03]} 34. Nf5+ {[%clk 0:00:54]}  Kf8 {[%clk 0:00:03]} 35. Rxd8+ {[%clk 0:00:52]}  Qxd8 {[%clk 0:00:04]} 36. Qg7+ {[%clk 0:00:51]}  Ke8 {[%clk 0:00:05]} 37. Nd6+ {[%clk 0:00:51]} 1-0


[Site "https://www.chess.com"]

[Event "Titled Tuesday Blitz March 01 Late 2022"]
[White "Hamley, Ryan"]
[Black "Rabineau, Clement"]
[WhiteFideId "30959497"]
[BlackFideId "628891"]
[WhiteElo "2586"]
[BlackElo "2433"]
[Result "1-0"]
[Round "07"]
[TimeControl "180+1"]
[Date "2022.03.02"]
[WhiteClock "0:02:01"]
[BlackClock "0:00:15"]

1. d4 {[%clk 0:02:59]}  d6 {[%clk 0:03:00]} 2. Nf3 {[%clk 0:02:58]}  g6 {[%clk 0:03:00]} 3. Nbd2 {[%clk 0:02:59]}  Bg7 {[%clk 0:03:00]} 4. e4 {[%clk 0:02:59]}  Nf6 {[%clk 0:03:01]} 5. Bd3 {[%clk 0:02:58]}  O-O {[%clk 0:03:01]} 6. c3 {[%clk 0:02:59]}  Nc6 {[%clk 0:03:01]} 7. O-O {[%clk 0:02:59]}  e5 {[%clk 0:03:02]} 8. dxe5 {[%clk 0:02:59]}  Nxe5 {[%clk 0:03:01]} 9. Nxe5 {[%clk 0:02:59]}  dxe5 {[%clk 0:03:01]} 10. Nc4 {[%clk 0:03:00]}  Qe7 {[%clk 0:02:58]} 11. Be3 {[%clk 0:02:59]}  b6 {[%clk 0:02:38]} 12. a4 {[%clk 0:02:52]}  a5 {[%clk 0:02:37]} 13. Qe2 {[%clk 0:02:50]}  Nh5 {[%clk 0:02:22]} 14. g3 {[%clk 0:02:42]}  Bh3 {[%clk 0:02:09]} 15. Rfe1 {[%clk 0:02:40]}  Rad8 {[%clk 0:01:20]} 16. Na3 {[%clk 0:02:30]}  Bf6 {[%clk 0:00:59]} 17. Nb5 {[%clk 0:02:26]}  Rd7 {[%clk 0:00:49]} 18. Rad1 {[%clk 0:02:23]}  Rfd8 {[%clk 0:00:47]} 19. Bc2 {[%clk 0:02:20]}  Bg5 {[%clk 0:00:46]} 20. Rxd7 {[%clk 0:02:16]}  Rxd7 {[%clk 0:00:45]} 21. Rd1 {[%clk 0:02:17]}  Bxe3 {[%clk 0:00:39]} 22. Qxe3 {[%clk 0:02:16]}  Qd8 {[%clk 0:00:29]} 23. Rxd7 {[%clk 0:02:04]}  Qxd7 {[%clk 0:00:30]} 24. f3 {[%clk 0:02:05]}  c6 {[%clk 0:00:19]} 25. Na3 {[%clk 0:02:04]}  c5 {[%clk 0:00:17]} 26. Kf2 {[%clk 0:02:02]}  Qxa4 {[%clk 0:00:15]} 27. Bxa4 {[%clk 0:02:01]} 1-0


[Site "https://www.chess.com"]

[Event "Titled Tuesday Blitz March 01 Late 2022"]
[White "Hoffmann, Asa"]
[Black "Kulon, Klaudia"]
[WhiteFideId "2001470"]
[BlackFideId "1131044"]
[WhiteElo "2117"]
[BlackElo "2281"]
[Result "1-0"]
[Round "07"]
[TimeControl "180+1"]
[Date "2022.03.02"]
[WhiteClock "0:01:26"]
[BlackClock "0:00:11"]

1. d4 {[%clk 0:02:57]}  Nf6 {[%clk 0:02:57]} 2. Bg5 {[%clk 0:02:56]}  d5 {[%clk 0:02:51]} 3. Nd2 {[%clk 0:02:55]}  Bf5 {[%clk 0:02:48]} 4. e3 {[%clk 0:02:54]}  e6 {[%clk 0:02:48]} 5. c4 {[%clk 0:02:54]}  c6 {[%clk 0:02:47]} 6. Qb3 {[%clk 0:02:53]}  b6 {[%clk 0:02:28]} 7. Ngf3 {[%clk 0:02:50]}  Be7 {[%clk 0:02:28]} 8. Ne5 {[%clk 0:02:48]}  O-O {[%clk 0:02:25]} 9. Be2 {[%clk 0:02:47]}  Nfd7 {[%clk 0:02:11]} 10. Bxe7 {[%clk 0:02:44]}  Qxe7 {[%clk 0:02:12]} 11. f4 {[%clk 0:02:43]}  Nxe5 {[%clk 0:02:08]} 12. fxe5 {[%clk 0:02:40]}  Qh4+ {[%clk 0:01:59]} 13. g3 {[%clk 0:02:39]}  Qh3 {[%clk 0:01:55]} 14. Bf1 {[%clk 0:02:29]}  Qh6 {[%clk 0:01:47]} 15. Bg2 {[%clk 0:02:25]}  f6 {[%clk 0:01:34]} 16. exf6 {[%clk 0:02:24]}  Rxf6 {[%clk 0:01:32]} 17. O-O {[%clk 0:02:24]}  Bh3 {[%clk 0:01:12]} 18. Rxf6 {[%clk 0:02:17]}  gxf6 {[%clk 0:01:12]} 19. Bxh3 {[%clk 0:02:11]}  Qxh3 {[%clk 0:01:13]} 20. e4 {[%clk 0:02:11]}  Qh6 {[%clk 0:01:08]} 21. Qd3 {[%clk 0:02:03]}  Nd7 {[%clk 0:00:49]} 22. Rf1 {[%clk 0:02:02]}  dxc4 {[%clk 0:00:42]} 23. Nxc4 {[%clk 0:02:00]}  b5 {[%clk 0:00:41]} 24. Nd6 {[%clk 0:01:57]}  Nb6 {[%clk 0:00:35]} 25. Qb3 {[%clk 0:01:50]}  f5 {[%clk 0:00:25]} 26. Nxf5 {[%clk 0:01:43]}  Qf6 {[%clk 0:00:20]} 27. e5 {[%clk 0:01:42]}  Qd8 {[%clk 0:00:13]} 28. Qxe6+ {[%clk 0:01:41]}  Kh8 {[%clk 0:00:14]} 29. Nd6 {[%clk 0:01:39]}  Kg7 {[%clk 0:00:13]} 30. Rf7+ {[%clk 0:01:37]}  Kh8 {[%clk 0:00:13]} 31. Re7 {[%clk 0:01:29]}  Qg8 {[%clk 0:00:12]} 32. Nf7+ {[%clk 0:01:28]}  Kg7 {[%clk 0:00:12]} 33. Qf6+ {[%clk 0:01:28]}  Kf8 {[%clk 0:00:11]} 34. Nh8+ {[%clk 0:01:27]}  Qf7 {[%clk 0:00:11]} 35. Qxf7# {[%clk 0:01:26]} 1-0


[Site "https://www.chess.com"]

[Event "Titled Tuesday Blitz March 01 Late 2022"]
[White "Holt, Conrad"]
[Black "Sargsyan, Anna M."]
[WhiteFideId "2034387"]
[BlackFideId "13308130"]
[WhiteElo "2586"]
[BlackElo "2271"]
[Result "1/2-1/2"]
[Round "07"]
[TimeControl "180+1"]
[Date "2022.03.01"]
[WhiteClock "0:00:04"]
[BlackClock "0:00:06"]

1. d4 {[%clk 0:03:00]}  Nf6 {[%clk 0:03:00]} 2. c4 {[%clk 0:03:01]}  g6 {[%clk 0:03:00]} 3. Nc3 {[%clk 0:03:01]}  d5 {[%clk 0:03:01]} 4. e3 {[%clk 0:03:01]}  Bg7 {[%clk 0:03:00]} 5. Qb3 {[%clk 0:03:01]}  c6 {[%clk 0:02:54]} 6. Nf3 {[%clk 0:02:55]}  O-O {[%clk 0:02:54]} 7. Be2 {[%clk 0:02:51]}  a6 {[%clk 0:02:54]} 8. a4 {[%clk 0:02:42]}  Nbd7 {[%clk 0:02:44]} 9. cxd5 {[%clk 0:02:38]}  cxd5 {[%clk 0:02:34]} 10. O-O {[%clk 0:02:37]}  Nb8 {[%clk 0:02:29]} 11. Ne5 {[%clk 0:02:35]}  Nc6 {[%clk 0:02:27]} 12. Nxc6 {[%clk 0:02:35]}  bxc6 {[%clk 0:02:28]} 13. Bd2 {[%clk 0:02:35]}  a5 {[%clk 0:02:19]} 14. Rfc1 {[%clk 0:02:30]}  Bd7 {[%clk 0:02:18]} 15. Qc2 {[%clk 0:02:19]}  Ne8 {[%clk 0:02:14]} 16. Bd3 {[%clk 0:02:17]}  e5 {[%clk 0:02:13]} 17. dxe5 {[%clk 0:02:12]}  Bxe5 {[%clk 0:02:14]} 18. Ne2 {[%clk 0:02:11]}  Nd6 {[%clk 0:02:08]} 19. Nd4 {[%clk 0:02:03]}  Rc8 {[%clk 0:01:59]} 20. Qc5 {[%clk 0:01:32]}  Nb7 {[%clk 0:01:46]} 21. Qa7 {[%clk 0:01:32]}  Qc7 {[%clk 0:00:45]} 22. Nb5 {[%clk 0:01:23]}  Qb8 {[%clk 0:00:27]} 23. Qxb8 {[%clk 0:01:18]}  Rxb8 {[%clk 0:00:28]} 24. Bc3 {[%clk 0:00:57]}  Bxc3 {[%clk 0:00:22]} 25. Nxc3 {[%clk 0:00:58]}  Nc5 {[%clk 0:00:22]} 26. Nxd5 {[%clk 0:00:59]}  Nxd3 {[%clk 0:00:20]} 27. Nf6+ {[%clk 0:00:59]}  Kg7 {[%clk 0:00:21]} 28. Nxd7 {[%clk 0:01:00]}  Nxc1 {[%clk 0:00:20]} 29. Rxc1 {[%clk 0:00:59]}  Rxb2 {[%clk 0:00:21]} 30. Nxf8 {[%clk 0:00:58]}  Kxf8 {[%clk 0:00:21]} 31. f3 {[%clk 0:00:34]}  Ra2 {[%clk 0:00:21]} 32. Rxc6 {[%clk 0:00:33]}  Rxa4 {[%clk 0:00:22]} 33. Kf2 {[%clk 0:00:30]}  Ra1 {[%clk 0:00:21]} 34. Ra6 {[%clk 0:00:29]}  a4 {[%clk 0:00:21]} 35. g4 {[%clk 0:00:25]}  h6 {[%clk 0:00:19]} 36. h4 {[%clk 0:00:20]}  a3 {[%clk 0:00:19]} 37. Kg3 {[%clk 0:00:18]}  Kg7 {[%clk 0:00:16]} 38. Kf4 {[%clk 0:00:18]}  a2 {[%clk 0:00:13]} 39. e4 {[%clk 0:00:15]}  Rh1 {[%clk 0:00:10]} 40. Rxa2 {[%clk 0:00:14]}  Rxh4 {[%clk 0:00:11]} 41. Ra7 {[%clk 0:00:13]}  h5 {[%clk 0:00:10]} 42. Kg3 {[%clk 0:00:12]}  Rh1 {[%clk 0:00:10]} 43. e5 {[%clk 0:00:11]}  hxg4 {[%clk 0:00:09]} 44. e6 {[%clk 0:00:08]}  gxf3 {[%clk 0:00:08]} 45. Rxf7+ {[%clk 0:00:08]}  Kg8 {[%clk 0:00:08]} 46. Rf6 {[%clk 0:00:04]}  Re1 {[%clk 0:00:07]} 47. Kf2 {[%clk 0:00:03]}  Re5 {[%clk 0:00:06]} 48. Kxf3 {[%clk 0:00:03]}  Kg7 {[%clk 0:00:06]} 49. Rf7+ {[%clk 0:00:04]}  Kg8 {[%clk 0:00:05]} 50. Re7 {[%clk 0:00:04]}  Kf8 {[%clk 0:00:05]} 51. Rf7+ {[%clk 0:00:04]}  Ke8 {[%clk 0:00:06]} 52. Rf6 {[%clk 0:00:04]}  Ke7 {[%clk 0:00:05]} 53. Rxg6 {[%clk 0:00:04]}  Rxe6 {[%clk 0:00:06]} 54. Rxe6+ {[%clk 0:00:04]}  Kxe6 {[%clk 0:00:06]} 1/2-1/2


[Site "https://www.chess.com"]

[Event "Titled Tuesday Blitz March 01 Late 2022"]
[White "Indjic, Aleksandar"]
[Black "Demidov, Mikhail"]
[WhiteFideId "911925"]
[BlackFideId "4197143"]
[WhiteElo "2616"]
[BlackElo "2525"]
[Result "0-1"]
[Round "07"]
[TimeControl "180+1"]
[Date "2022.03.01"]
[WhiteClock "0:00:04"]
[BlackClock "0:00:12"]

1. e4 {[%clk 0:03:00]}  Nf6 {[%clk 0:02:59]} 2. e5 {[%clk 0:02:58]}  Nd5 {[%clk 0:02:59]} 3. d4 {[%clk 0:02:56]}  d6 {[%clk 0:02:59]} 4. Nf3 {[%clk 0:02:56]}  Nb6 {[%clk 0:02:59]} 5. h3 {[%clk 0:02:53]}  g6 {[%clk 0:02:59]} 6. a4 {[%clk 0:02:49]}  a5 {[%clk 0:02:58]} 7. Bf4 {[%clk 0:02:46]}  Bg7 {[%clk 0:02:58]} 8. Nc3 {[%clk 0:02:45]}  O-O {[%clk 0:02:58]} 9. Qd2 {[%clk 0:02:42]}  Nc6 {[%clk 0:02:55]} 10. Bh6 {[%clk 0:02:33]}  dxe5 {[%clk 0:02:52]} 11. Bxg7 {[%clk 0:02:33]}  Kxg7 {[%clk 0:02:52]} 12. dxe5 {[%clk 0:01:56]}  Qxd2+ {[%clk 0:02:50]} 13. Kxd2 {[%clk 0:01:57]}  Rd8+ {[%clk 0:02:48]} 14. Ke3 {[%clk 0:01:52]}  Bf5 {[%clk 0:02:43]} 15. Rc1 {[%clk 0:01:51]}  Nb4 {[%clk 0:02:39]} 16. Nd4 {[%clk 0:01:51]}  N4d5+ {[%clk 0:01:56]} 17. Nxd5 {[%clk 0:01:49]}  Rxd5 {[%clk 0:01:47]} 18. f4 {[%clk 0:01:48]}  Nxa4 {[%clk 0:01:34]} 19. g4 {[%clk 0:01:47]}  Bc8 {[%clk 0:01:26]} 20. b3 {[%clk 0:01:42]}  Nb6 {[%clk 0:01:23]} 21. c4 {[%clk 0:01:40]}  Rd8 {[%clk 0:01:22]} 22. Bg2 {[%clk 0:01:39]}  c6 {[%clk 0:01:20]} 23. Be4 {[%clk 0:01:18]}  a4 {[%clk 0:01:10]} 24. b4 {[%clk 0:01:11]}  a3 {[%clk 0:01:09]} 25. Rc3 {[%clk 0:00:27]}  Be6 {[%clk 0:00:58]} 26. Bd3 {[%clk 0:00:18]}  Ra4 {[%clk 0:00:44]} 27. f5 {[%clk 0:00:18]}  Bxc4 {[%clk 0:00:23]} 28. Bxc4 {[%clk 0:00:17]}  Rxb4 {[%clk 0:00:23]} 29. Rhc1 {[%clk 0:00:09]}  a2 {[%clk 0:00:20]} 30. f6+ {[%clk 0:00:07]}  exf6 {[%clk 0:00:19]} 31. exf6+ {[%clk 0:00:08]}  Kxf6 {[%clk 0:00:20]} 32. Rf1+ {[%clk 0:00:08]}  Kg5 {[%clk 0:00:17]} 33. Bxa2 {[%clk 0:00:06]}  Rbxd4 {[%clk 0:00:12]} 34. Rxf7 {[%clk 0:00:06]}  R4d7 {[%clk 0:00:12]} 35. Rf2 {[%clk 0:00:04]}  Nd5+ {[%clk 0:00:11]} 36. Bxd5 {[%clk 0:00:05]}  Rxd5 {[%clk 0:00:12]} 37. Rb3 {[%clk 0:00:03]}  Re8+ {[%clk 0:00:12]} 38. Kf3 {[%clk 0:00:03]}  Rf8+ {[%clk 0:00:12]} 39. Kg3 {[%clk 0:00:04]}  Rxf2 {[%clk 0:00:12]} 40. Kxf2 {[%clk 0:00:05]}  b5 {[%clk 0:00:12]} 41. Re3 {[%clk 0:00:04]}  Kf6 {[%clk 0:00:12]} 42. Kg3 {[%clk 0:00:04]}  b4 {[%clk 0:00:12]} 43. Re4 {[%clk 0:00:04]}  Rb5 {[%clk 0:00:12]} 0-1


[Site "https://www.chess.com"]

[Event "Titled Tuesday Blitz March 01 Late 2022"]
[White "Iskusnyh, Sergei"]
[Black "Kopczynski, Michal"]
[WhiteFideId "4120027"]
[BlackFideId "1124200"]
[WhiteElo "2661"]
[BlackElo "2462"]
[Result "0-1"]
[Round "07"]
[TimeControl "180+1"]
[Date "2022.03.02"]
[WhiteClock "0:00:08"]
[BlackClock "0:00:13"]

1. d4 {[%clk 0:03:00]}  Nf6 {[%clk 0:02:59]} 2. c4 {[%clk 0:03:01]}  g6 {[%clk 0:03:00]} 3. g3 {[%clk 0:03:01]}  Bg7 {[%clk 0:03:00]} 4. Bg2 {[%clk 0:03:01]}  d6 {[%clk 0:03:01]} 5. Nc3 {[%clk 0:03:02]}  O-O {[%clk 0:03:02]} 6. Nf3 {[%clk 0:03:02]}  Nc6 {[%clk 0:03:02]} 7. O-O {[%clk 0:03:03]}  Nd7 {[%clk 0:03:02]} 8. e4 {[%clk 0:02:39]}  e5 {[%clk 0:03:02]} 9. Be3 {[%clk 0:02:37]}  h6 {[%clk 0:03:00]} 10. Qd2 {[%clk 0:02:31]}  Kh7 {[%clk 0:02:59]} 11. Rad1 {[%clk 0:02:30]}  f5 {[%clk 0:02:57]} 12. dxe5 {[%clk 0:02:26]}  Ncxe5 {[%clk 0:02:55]} 13. Nxe5 {[%clk 0:02:20]}  Nxe5 {[%clk 0:02:56]} 14. Qe2 {[%clk 0:02:12]}  fxe4 {[%clk 0:02:48]} 15. Nxe4 {[%clk 0:02:05]}  Be6 {[%clk 0:02:42]} 16. b3 {[%clk 0:01:58]}  Qd7 {[%clk 0:02:41]} 17. Nc5 {[%clk 0:01:55]}  Qe7 {[%clk 0:02:15]} 18. Nxe6 {[%clk 0:01:53]}  Qxe6 {[%clk 0:02:16]} 19. Bxb7 {[%clk 0:01:46]}  Rae8 {[%clk 0:01:53]} 20. Bd5 {[%clk 0:01:08]}  Qf5 {[%clk 0:01:52]} 21. Qd2 {[%clk 0:00:50]}  Nf3+ {[%clk 0:01:08]} 22. Bxf3 {[%clk 0:00:50]}  Qxf3 {[%clk 0:01:09]} 23. Rde1 {[%clk 0:00:47]}  h5 {[%clk 0:01:08]} 24. h4 {[%clk 0:00:42]}  Re4 {[%clk 0:01:04]} 25. Bg5 {[%clk 0:00:39]}  Bd4 {[%clk 0:00:51]} 26. Rxe4 {[%clk 0:00:18]}  Qxg3+ {[%clk 0:00:45]} 27. Kh1 {[%clk 0:00:18]}  Qf3+ {[%clk 0:00:37]} 28. Kh2 {[%clk 0:00:18]}  Qxe4 {[%clk 0:00:35]} 29. f4 {[%clk 0:00:18]}  Be3 {[%clk 0:00:30]} 30. Qg2 {[%clk 0:00:18]}  Qd4 {[%clk 0:00:25]} 31. f5 {[%clk 0:00:16]}  Rxf5 {[%clk 0:00:18]} 32. Rxf5 {[%clk 0:00:15]}  gxf5 {[%clk 0:00:19]} 33. Bxe3 {[%clk 0:00:15]}  Qxe3 {[%clk 0:00:20]} 34. Qb7 {[%clk 0:00:14]}  Qf4+ {[%clk 0:00:18]} 35. Kg1 {[%clk 0:00:13]}  Qg4+ {[%clk 0:00:17]} 36. Kf2 {[%clk 0:00:13]}  Qxh4+ {[%clk 0:00:17]} 37. Ke3 {[%clk 0:00:13]}  Qe4+ {[%clk 0:00:17]} 38. Qxe4 {[%clk 0:00:11]}  fxe4 {[%clk 0:00:18]} 39. Kxe4 {[%clk 0:00:12]}  Kg6 {[%clk 0:00:18]} 40. Kf4 {[%clk 0:00:13]}  Kf6 {[%clk 0:00:18]} 41. b4 {[%clk 0:00:13]}  Ke6 {[%clk 0:00:19]} 42. a4 {[%clk 0:00:13]}  d5 {[%clk 0:00:18]} 43. c5 {[%clk 0:00:11]}  h4 {[%clk 0:00:17]} 44. b5 {[%clk 0:00:11]}  d4 {[%clk 0:00:16]} 45. a5 {[%clk 0:00:10]}  Kd5 {[%clk 0:00:14]} 46. b6 {[%clk 0:00:10]}  cxb6 {[%clk 0:00:13]} 47. cxb6 {[%clk 0:00:08]}  axb6 {[%clk 0:00:13]} 0-1


[Site "https://www.chess.com"]

[Event "Titled Tuesday Blitz March 01 Late 2022"]
[White "Jakubowska, Anna"]
[Black "Antonova, Nadezhda"]
[WhiteFideId "1121952"]
[BlackFideId "14700182"]
[WhiteElo "1924"]
[BlackElo "1765"]
[Result "0-1"]
[Round "07"]
[TimeControl "180+1"]
[Date "2022.03.02"]
[WhiteClock "0:00:44"]
[BlackClock "0:00:05"]

1. e4 {[%clk 0:03:00]}  c5 {[%clk 0:02:59]} 2. Nc3 {[%clk 0:03:00]}  Nc6 {[%clk 0:02:59]} 3. g3 {[%clk 0:03:01]}  g6 {[%clk 0:02:59]} 4. Bg2 {[%clk 0:03:01]}  Bg7 {[%clk 0:02:59]} 5. d3 {[%clk 0:03:02]}  d6 {[%clk 0:02:59]} 6. Nh3 {[%clk 0:03:02]}  e6 {[%clk 0:02:59]} 7. O-O {[%clk 0:03:02]}  Nge7 {[%clk 0:02:59]} 8. Be3 {[%clk 0:03:02]}  O-O {[%clk 0:02:58]} 9. Qd2 {[%clk 0:03:02]}  Nd4 {[%clk 0:02:55]} 10. Nd1 {[%clk 0:03:01]}  Re8 {[%clk 0:02:47]} 11. c3 {[%clk 0:03:01]}  Ndc6 {[%clk 0:02:47]} 12. Bh6 {[%clk 0:03:01]}  Bh8 {[%clk 0:02:47]} 13. f4 {[%clk 0:02:58]}  d5 {[%clk 0:02:47]} 14. Qe2 {[%clk 0:02:46]}  c4 {[%clk 0:02:33]} 15. dxc4 {[%clk 0:02:44]}  dxe4 {[%clk 0:02:31]} 16. Bxe4 {[%clk 0:02:40]}  b6 {[%clk 0:01:58]} 17. Ne3 {[%clk 0:02:39]}  Bb7 {[%clk 0:01:55]} 18. Rad1 {[%clk 0:02:39]}  Qc7 {[%clk 0:01:54]} 19. g4 {[%clk 0:02:29]}  Na5 {[%clk 0:01:45]} 20. Bxb7 {[%clk 0:02:18]}  Nxb7 {[%clk 0:01:42]} 21. Qf3 {[%clk 0:02:12]}  Na5 {[%clk 0:01:24]} 22. f5 {[%clk 0:02:03]}  exf5 {[%clk 0:01:11]} 23. gxf5 {[%clk 0:02:02]}  Qc6 {[%clk 0:00:55]} 24. Nd5 {[%clk 0:01:59]}  Nxf5 {[%clk 0:00:48]} 25. b4 {[%clk 0:01:47]}  Qxc4 {[%clk 0:00:44]} 26. bxa5 {[%clk 0:01:44]}  Nxh6 {[%clk 0:00:44]} 27. Ne7+ {[%clk 0:01:32]}  Kf8 {[%clk 0:00:34]} 28. Ng5 {[%clk 0:01:32]}  Kxe7 {[%clk 0:00:15]} 29. Nxh7 {[%clk 0:01:23]}  Qg4+ {[%clk 0:00:14]} 30. Qxg4 {[%clk 0:01:19]}  Nxg4 {[%clk 0:00:14]} 31. Ng5 {[%clk 0:01:17]}  Ne5 {[%clk 0:00:11]} 32. Rfe1 {[%clk 0:00:57]}  f6 {[%clk 0:00:11]} 33. Nf3 {[%clk 0:00:57]}  Kf7 {[%clk 0:00:10]} 34. Nd4 {[%clk 0:00:57]}  Rad8 {[%clk 0:00:09]} 35. Re3 {[%clk 0:00:53]}  Bg7 {[%clk 0:00:09]} 36. Rf1 {[%clk 0:00:52]}  Bh6 {[%clk 0:00:06]} 37. Rg3 {[%clk 0:00:48]}  Nc4 {[%clk 0:00:05]} 38. Rgf3 {[%clk 0:00:45]}  Be3+ {[%clk 0:00:04]} 39. Kg2 {[%clk 0:00:45]}  Bxd4 {[%clk 0:00:04]} 40. cxd4 {[%clk 0:00:46]}  f5 {[%clk 0:00:05]} 41. Rc3 {[%clk 0:00:45]}  Ne3+ {[%clk 0:00:04]} 42. Kf2 {[%clk 0:00:44]}  Nxf1 {[%clk 0:00:05]} 43. Kxf1 {[%clk 0:00:44]}  Rxd4 {[%clk 0:00:05]} 44. Rc7+ {[%clk 0:00:45]}  Re7 {[%clk 0:00:05]} 45. Rc6 {[%clk 0:00:45]}  bxa5 {[%clk 0:00:05]} 46. Ra6 {[%clk 0:00:45]}  Ra4 {[%clk 0:00:05]} 47. h4 {[%clk 0:00:44]}  Rxa2 {[%clk 0:00:05]} 48. h5 {[%clk 0:00:44]}  gxh5 {[%clk 0:00:05]} 49. Rh6 {[%clk 0:00:43]}  Re6 {[%clk 0:00:06]} 50. Rh7+ {[%clk 0:00:44]}  Kf6 {[%clk 0:00:06]} 51. Rxh5 {[%clk 0:00:44]}  Rd6 {[%clk 0:00:05]} 52. Rh6+ {[%clk 0:00:44]}  Ke5 {[%clk 0:00:05]} 0-1


[Site "https://www.chess.com"]